bitfinex/quotes_BTCUSD_20240602
["timestamp","ask_amount","ask_price","bid_price","bid_amount"]
[1717345470494,0.03800485,68057.0,68054.0,0.00471546]
[1717345470735,0.2598328,68055.0,68054.0,0.00471546]
[1717345470954,0.18495085,68052.0,68051.0,0.001]
[1717345471825,0.57202876,68052.0,68051.0,0.001]
[1717345472048,0.5749095,68052.0,68051.0,0.001]
[1717345472296,0.5749095,68052.0,68036.0,0.07818354]
[1717345472297,0.1612,68044.0,68036.0,0.07818354]
[1717345472511,0.1612,68044.0,68037.0,0.15251801]
[1717345472512,0.146967,68043.0,68037.0,0.15251801]
[1717345472720,0.18497185,68043.0,68038.0,0.15251801]
[1717345472931,0.03800485,68040.0,68038.0,0.15251801]
[1717345473174,0.14577791,68040.0,68039.0,0.00472436]
[1717345473573,0.14577791,68040.0,68032.0,0.0493]
[1717345473776,0.14577791,68040.0,68033.0,0.15253076]
[1717345473985,0.14577791,68040.0,68034.0,0.15253076]
[1717345474187,0.14577791,68040.0,68035.0,0.15253076]
[1717345474386,0.18378276,68040.0,68035.0,0.00472712]
[1717345474566,0.14577791,68040.0,68035.0,0.00472712]
[1717345474744,0.18378276,68040.0,68032.0,0.0493]
[1717345474948,0.14577791,68040.0,68033.0,0.15253077]
[1717345475127,0.14577791,68040.0,68034.0,0.15253056]
[1717345475327,0.14577791,68040.0,68035.0,0.15253056]
[1717345475328,0.14559056,68040.0,68035.0,0.15253056]
[1717345475579,0.16459056,68040.0,68035.0,0.00472712]
[1717345475752,0.16459056,68040.0,68032.0,0.0493]
[1717345475966,0.16459056,68040.0,68033.0,0.15253048]
[1717345476117,0.16559056,68040.0,68034.0,0.15253048]
[1717345476326,0.16759056,68040.0,68035.0,0.00472712]
[1717345476524,0.16759056,68040.0,68032.0,0.0503]
[1717345476525,0.18559541,68040.0,68032.0,0.0503]
[1717345476726,0.19059541,68040.0,68033.0,0.15725898]
[1717345476994,0.03800485,68039.0,68034.0,0.15253048]
[1717345477206,0.03800485,68039.0,68035.0,0.00472712]
[1717345477439,0.03800485,68039.0,68034.0,0.001]
[1717345477587,0.03800485,68039.0,68036.0,0.00472643]
[1717345477831,0.03800485,68037.0,68031.0,0.0326511]
[1717345478041,0.03800485,68038.0,68037.0,0.00472574]
[1717345478293,0.0801,68038.0,68029.0,0.0493]
[1717345478576,0.0801,68038.0,68037.0,0.00472574]
[1717345478727,0.0801,68038.0,68029.0,0.0493]
[1717345478927,0.0801,68038.0,68030.0,0.15253894]
[1717345479130,0.0801,68038.0,68030.0,0.00473057]
[1717345479341,0.1061,68038.0,68030.0,0.00473057]
[1717345479534,0.03800485,68037.0,68030.0,0.00473057]
[1717345480125,0.29408185,68038.0,68029.0,0.001]
[1717345480346,0.26708185,68038.0,68031.0,0.00472988]
[1717345480735,0.26508185,68038.0,68032.0,0.00474157]
[1717345480941,0.001,68037.0,68032.0,0.00474157]
[1717345481140,0.001,68037.0,68030.0,0.001]
[1717345481341,0.001,68037.0,68033.0,0.00474088]
[1717345481476,0.001,68037.0,68030.0,0.001]
[1717345481685,0.001,68037.0,68034.0,0.00474019]
[1717345481888,0.001,68037.0,68030.0,0.001]
[1717345482145,0.26608185,68038.0,68028.0,0.17842669]
[1717345482346,0.001,68037.0,68031.0,0.00474226]
[1717345482553,0.1612,68036.0,68031.0,0.001]
[1717345482762,0.1612,68036.0,68032.0,0.00474157]
[1717345482971,0.26508185,68038.0,68032.0,0.00474157]
[1717345483162,0.03800485,68037.0,68032.0,0.00474157]
[1717345483428,0.03800485,68036.0,68028.0,0.17942669]
[1717345483625,0.03800485,68036.0,68033.0,0.00474088]
[1717345483851,0.03800485,68036.0,68028.0,0.1605]
[1717345484063,0.05400485,68037.0,68034.0,0.00474019]
[1717345484269,0.20098385,68037.0,68024.0,0.2098]
[1717345484448,0.20098385,68037.0,68035.0,0.0047395]
[1717345484709,0.03800485,68034.0,68024.0,0.356805]
[1717345484921,0.03800485,68034.0,68024.0,0.1605]
[1717345484922,0.2413,68031.0,68024.0,0.1605]
[1717345485135,0.2413,68031.0,68023.0,0.05381428]
[1717345485136,0.11810485,68030.0,68025.0,0.00474641]
[1717345485532,0.03800485,68029.0,68023.0,0.00182]
[1717345485879,0.03800485,68029.0,68024.0,0.0047471]
[1717345486077,0.11810485,68030.0,68024.0,0.0047471]
[1717345486297,0.03800485,68029.0,68024.0,0.0047471]
[1717345486642,0.146998,68028.0,68024.0,0.0047471]
[1717345487057,0.146998,68028.0,68024.0,0.0057471]
[1717345487622,0.146998,68028.0,68024.0,0.0047471]
[1717345487825,0.149998,68028.0,68024.0,0.0057471]
[1717345488723,0.150998,68028.0,68024.0,0.0057471]
[1717345489305,0.147998,68028.0,68024.0,0.0047471]
[1717345489539,0.148998,68028.0,68024.0,0.0057471]
[1717345491439,0.002,68028.0,68024.0,0.0057471]
[1717345491945,0.002,68028.0,68024.0,0.0027471]
[1717345492139,0.002,68028.0,68024.0,0.00564641]
[1717345493280,0.002,68028.0,68026.0,0.2062]
[1717345493471,0.002,68028.0,68027.0,0.19697907]
[1717345493935,0.002,68028.0,68027.0,0.2016241]
[1717345494344,0.001,68028.0,68027.0,0.2016241]
[1717345494771,0.003,68028.0,68027.0,0.2016241]
[1717345495187,0.002,68028.0,68027.0,0.35416404]
[1717345495405,0.014,68028.0,68027.0,0.35416404]
[1717345496064,0.014,68028.0,68027.0,0.2016241]
[1717345496269,0.014,68028.0,68027.0,0.35416457]
[1717345496450,0.012,68028.0,68027.0,0.35416457]
[1717345496990,0.018,68028.0,68027.0,0.35416457]
[1717345498101,0.018,68028.0,68027.0,0.86343763]
[1717345498339,0.018,68028.0,68027.0,1.33643763]
[1717345499204,0.006,68028.0,68027.0,1.33643763]
[1717345499679,0.0807,68050.0,68037.0,0.1911]
[1717345499912,0.37342791,68050.0,68043.0,0.0493]
[1717345500127,0.22765,68050.0,68044.0,0.1569]
[1717345500345,0.22765,68050.0,68044.0,0.16153549]
[1717345500562,0.14695,68050.0,68044.0,0.16153549]
[1717345500780,0.0807,68053.0,68047.0,0.0493]
[1717345501030,0.1,68053.0,68047.0,0.0493]
[1717345501706,0.1,68053.0,68048.0,0.00463272]
[1717345501707,0.023,68050.0,68048.0,0.00463272]
[1717345502392,0.023,68050.0,68046.0,0.0493]
[1717345502617,0.023,68050.0,68049.0,0.00463203]
[1717345502618,0.035,68050.0,68049.0,0.00463203]
[1717345502863,0.035,68050.0,68046.0,0.0493]
[1717345502864,0.023,68050.0,68046.0,0.0493]
[1717345503069,0.1,68053.0,68049.0,0.00463203]
[1717345503281,0.019,68050.0,68049.0,0.00463203]
[1717345503527,0.019,68050.0,68048.0,0.002]
[1717345503740,0.28494885,68053.0,68046.0,0.0493]
[1717345503951,0.022,68050.0,68049.0,0.002]
[1717345504158,0.028,68050.0,68049.0,0.002]
[1717345504503,0.022,68050.0,68049.0,0.002]
[1717345505566,0.252944,68053.0,68046.0,0.0503]
[1717345505915,0.264944,68053.0,68047.0,0.00463682]
[1717345506117,0.252944,68053.0,68048.0,0.1569]
[1717345506375,0.246944,68053.0,68048.0,0.16153612]
[1717345506600,0.039,68050.0,68049.0,0.004]
[1717345506790,0.017,68050.0,68049.0,0.002]
[1717345506998,0.017,68050.0,68049.0,0.00663543]
[1717345507169,0.261944,68053.0,68049.0,0.00463543]
[1717345507379,0.274944,68053.0,68049.0,0.00463543]
[1717345508029,0.261944,68053.0,68049.0,0.00463543]
[1717345508201,0.017,68050.0,68049.0,0.00663543]
[1717345508888,0.039,68050.0,68049.0,0.04283543]
[1717345509720,0.022,68050.0,68049.0,0.04083543]
[1717345509897,0.022,68050.0,68049.0,0.04283543]
[1717345510530,0.022,68050.0,68049.0,0.04083543]
[1717345510737,0.022,68050.0,68049.0,0.11070807]
[1717345510907,0.039,68050.0,68049.0,0.57405283]
[1717345511316,0.039,68050.0,68049.0,0.72855283]
[1717345511509,0.039,68050.0,68049.0,0.77250014]
[1717345511973,0.039,68050.0,68049.0,0.72855283]
[1717345512171,0.039,68050.0,68049.0,0.87433074]
[1717345512318,0.039,68050.0,68049.0,0.94125425]
[1717345512519,0.039,68050.0,68049.0,1.02673074]
[1717345512718,0.017,68050.0,68049.0,0.92473074]
[1717345512992,0.02,68050.0,68049.0,0.95173074]
[1717345513338,0.003,68050.0,68049.0,0.96664323]
[1717345513542,0.006,68050.0,68049.0,0.95573074]
[1717345513743,0.009,68050.0,68049.0,1.33573074]
[1717345513921,0.003,68050.0,68049.0,1.30273074]
[1717345514143,0.4796,68068.0,68058.0,0.345031]
[1717345514324,0.146902,68073.0,68061.0,0.0493]
[1717345514534,0.1,68072.0,68062.0,0.00587626]
[1717345514737,0.1,68072.0,68062.0,0.01048896]
[1717345515516,0.001,68068.0,68062.0,0.01048896]
[1717345515914,0.001,68068.0,68062.0,0.0046127]
[1717345516768,0.1803,68070.0,68062.0,0.0046127]
[1717345516900,0.1,68070.0,68063.0,0.1639]
[1717345517110,0.002,68068.0,68063.0,0.16851201]
[1717345517711,0.0803,68067.0,68063.0,0.00461201]
[1717345517972,0.0803,68067.0,68062.0,0.002]
[1717345518176,0.0803,68067.0,68064.0,0.00461132]
[1717345518382,0.0803,68067.0,68063.0,0.00461201]
[1717345518524,0.0803,68067.0,68065.0,0.00461063]
[1717345518740,0.0803,68067.0,68061.0,0.0493]
[1717345518939,0.0803,68067.0,68066.0,0.00460994]
[1717345519140,0.0803,68067.0,68061.0,0.0493]
[1717345519349,0.0803,68067.0,68066.0,0.00460994]
[1717345519560,0.2446,68067.0,68061.0,0.0493]
[1717345519760,0.28260485,68067.0,68066.0,0.00460994]
[1717345519958,0.2446,68067.0,68061.0,0.002]
[1717345520165,0.2446,68067.0,68066.0,0.00458817]
[1717345520365,0.2486,68067.0,68060.0,0.1639]
[1717345520730,0.2486,68067.0,68066.0,0.001]
[1717345520731,0.2646,68067.0,68066.0,0.001]
[1717345520877,0.2606,68067.0,68060.0,0.1639]
[1717345521077,0.2606,68067.0,68066.0,0.00458805]
[1717345521288,0.2606,68067.0,68060.0,0.1639]
[1717345521289,0.2616,68067.0,68061.0,0.006]
[1717345521467,0.2616,68067.0,68066.0,0.00458805]
[1717345521697,0.2606,68067.0,68060.0,0.1639]
[1717345522037,0.0963,68067.0,68060.0,0.1639]
[1717345522269,0.0963,68067.0,68061.0,0.0045915]
[1717345522494,0.0963,68067.0,68061.0,0.0065915]
[1717345522696,0.0803,68067.0,68061.0,0.0045915]
[1717345523114,0.0813,68067.0,68061.0,0.0045915]
[1717345523322,0.0913,68067.0,68066.0,0.001]
[1717345523778,0.0803,68067.0,68066.0,0.00458805]
[1717345523980,0.0813,68067.0,68066.0,0.00458805]
[1717345524389,0.0813,68067.0,68061.0,0.008]
[1717345524588,0.0803,68067.0,68066.0,0.00458741]
[1717345525011,0.0913,68067.0,68066.0,0.001]
[1717345525214,0.0913,68067.0,68066.0,0.00558741]
[1717345525422,0.0913,68067.0,68066.0,0.001]
[1717345525636,0.0913,68067.0,68066.0,0.00558741]
[1717345525849,0.1073,68067.0,68066.0,0.002]
[1717345526048,0.1073,68067.0,68066.0,0.00658741]
[1717345526293,0.1073,68067.0,68066.0,0.002]
[1717345526514,0.1073,68067.0,68066.0,0.00658741]
[1717345526515,0.14530485,68067.0,68066.0,0.00658741]
[1717345526724,0.1073,68067.0,68066.0,0.001]
[1717345526939,0.0963,68067.0,68066.0,0.001]
[1717345527148,0.0973,68067.0,68066.0,0.001]
[1717345527783,0.0963,68067.0,68066.0,0.001]
[1717345528227,0.1073,68067.0,68066.0,0.002]
[1717345536219,0.29221885,68067.0,68066.0,0.002]
[1717345539026,0.254214,68067.0,68066.0,0.002]
[1717345539417,0.254214,68067.0,68066.0,0.15447591]
[1717345539658,0.29221885,68067.0,68066.0,0.002]
[1717345539861,0.29221885,68067.0,68066.0,0.00658625]
[1717345540062,0.29221885,68067.0,68066.0,0.002]
[1717345541333,0.45229959,68067.0,68066.0,0.002]
[1717345541721,0.44941885,68067.0,68066.0,0.002]
[1717345542131,0.411414,68067.0,68066.0,0.002]
[1717345543257,0.44941885,68067.0,68066.0,0.002]
[1717345545667,0.44941885,68067.0,68066.0,0.00659126]
[1717345545941,0.411414,68067.0,68066.0,0.00659126]
[1717345546083,0.411414,68067.0,68066.0,0.002]
[1717345546789,0.027,68067.0,68066.0,0.002]
[1717345547164,0.027,68067.0,68066.0,0.15447667]
[1717345547340,0.027,68067.0,68066.0,0.15906793]
[1717345553743,0.027,68067.0,68066.0,0.15906634]
[1717345561717,0.027,68067.0,68066.0,0.15886634]
[1717345564189,0.027,68067.0,68066.0,0.31516634]
[1717345564394,0.027,68067.0,68066.0,0.36446634]
[1717345570979,0.027,68067.0,68066.0,0.44069936]
[1717345572149,0.027,68067.0,68066.0,0.4406903]
[1717345572352,0.027,68067.0,68066.0,0.63168618]
[1717345572574,0.027,68067.0,68066.0,1.0356483]
[1717345572696,0.027,68067.0,68066.0,1.00949358]
[1717345573184,0.027,68067.0,68066.0,1.09762461]
[1717345573389,0.016,68067.0,68066.0,1.09662461]
[1717345573541,0.183,68079.0,68068.0,0.20890615]
[1717345573865,0.183,68079.0,68071.0,0.0493]
[1717345574038,0.183,68079.0,68072.0,0.22869904]
[1717345574245,0.183,68079.0,68073.0,0.15246603]
[1717345574450,0.183,68079.0,68074.0,0.15246603]
[1717345574631,0.183,68079.0,68075.0,0.15246603]
[1717345574839,0.183,68079.0,68076.0,0.15246603]
[1717345575057,0.22100485,68079.0,68077.0,0.15246603]
[1717345575363,0.03800485,68077.0,68069.0,0.19097394]
[1717345575609,0.03800485,68077.0,68070.0,0.15245238]
[1717345575610,0.083,68076.0,68070.0,0.15245238]
[1717345575773,0.083,68076.0,68071.0,0.15245238]
[1717345575774,0.03800485,68074.0,68071.0,0.15245238]
[1717345575979,0.03800485,68074.0,68072.0,0.15245238]
[1717345576190,0.03800485,68074.0,68073.0,0.15245238]
[1717345576555,0.12100485,68074.0,68073.0,0.15245238]
[1717345576964,0.27460485,68074.0,68073.0,0.15245238]
[1717345577531,0.27260485,68074.0,68073.0,0.15245238]
[1717345577880,0.27260485,68074.0,68073.0,0.15246047]
[1717345578293,0.2346,68074.0,68073.0,0.15246047]
[1717345578719,0.2366,68074.0,68073.0,0.15246047]
[1717345579301,0.2366,68074.0,68073.0,0.1524587]
[1717345579479,0.2366,68074.0,68073.0,0.1554587]
[1717345580646,0.2366,68074.0,68073.0,0.16003128]
[1717345581134,0.27460485,68074.0,68073.0,0.16003128]
[1717345581348,0.2366,68074.0,68073.0,0.16003128]
[1717345581556,0.2366,68074.0,68073.0,0.1554587]
[1717345582172,0.2366,68074.0,68073.0,0.16003128]
[1717345582792,0.27460485,68074.0,68073.0,0.16003128]
[1717345583121,0.2366,68074.0,68073.0,0.16003128]
[1717345583920,0.27460485,68074.0,68073.0,0.16003128]
[1717345584122,0.2366,68074.0,68073.0,0.16003128]
[1717345584351,0.27460485,68074.0,68073.0,0.16003128]
[1717345585777,0.27460485,68074.0,68073.0,0.00757258]
[1717345585991,0.27460485,68074.0,68073.0,0.16003337]
[1717345586632,0.42438359,68074.0,68073.0,0.16003337]
[1717345586868,0.42150285,68074.0,68073.0,0.16003337]
[1717345587283,0.5701615,68074.0,68073.0,0.15983337]
[1717345590875,0.5701615,68074.0,68073.0,0.00737258]
[1717345591285,0.5701615,68074.0,68073.0,0.0028]
[1717345592499,0.56728076,68074.0,68073.0,0.0028]
[1717345592898,0.56728076,68074.0,68065.0,0.1643]
[1717345593097,0.03800485,68073.0,68066.0,0.15703938]
[1717345593344,0.03800485,68072.0,68067.0,0.15246466]
[1717345593476,0.03800485,68072.0,68068.0,0.15246466]
[1717345593696,0.03800485,68072.0,68069.0,0.15703731]
[1717345593901,0.03800485,68072.0,68070.0,0.15246466]
[1717345594101,0.03800485,68072.0,68071.0,0.15703593]
[1717345594847,0.03800485,68072.0,68071.0,0.15703623]
[1717345595027,0.04900485,68072.0,68071.0,0.15703623]
[1717345595231,0.05700485,68072.0,68071.0,0.15703623]
[1717345596279,0.04600485,68072.0,68071.0,0.15703623]
[1717345596675,0.05600485,68072.0,68071.0,0.15903623]
[1717345598235,0.07900485,68072.0,68071.0,0.16103623]
[1717345599784,0.041,68072.0,68071.0,0.16103623]
[1717345600355,0.041,68072.0,68071.0,0.15646496]
[1717345600581,0.041,68072.0,68071.0,0.16103623]
[1717345601078,0.07900485,68072.0,68071.0,0.16103623]
[1717345601402,0.07900485,68072.0,68071.0,0.15646496]
[1717345601718,0.07900485,68072.0,68071.0,0.16103623]
[1717345601917,0.041,68072.0,68071.0,0.16103623]
[1717345603608,0.041,68072.0,68071.0,0.15646496]
[1717345603789,0.041,68072.0,68071.0,0.16103623]
[1717345605892,0.041,68072.0,68071.0,0.16103271]
[1717345606586,0.041,68072.0,68071.0,0.1610327]
[1717345606791,0.07900485,68072.0,68071.0,0.1610327]
[1717345608020,0.041,68072.0,68071.0,0.1610327]
[1717345608224,0.07900485,68072.0,68071.0,0.1610327]
[1717345608876,0.08188559,68072.0,68071.0,0.15646143]
[1717345609231,0.07900485,68072.0,68071.0,0.16102592]
[1717345609454,0.08188559,68072.0,68071.0,0.16102592]
[1717345613555,0.74035545,68072.0,68071.0,0.16102592]
[1717345613715,0.69105545,68072.0,68071.0,0.16102592]
[1717345613915,0.74035545,68072.0,68071.0,0.15646143]
[1717345614124,0.74035545,68072.0,68071.0,0.00855867]
[1717345614319,0.74035545,68072.0,68071.0,0.004]
[1717345614936,0.71735545,68072.0,68071.0,0.002]
[1717345615374,0.71735545,68072.0,68071.0,0.003]
[1717345615375,0.74635545,68072.0,68071.0,0.003]
[1717345615703,0.03800485,68063.0,68058.0,0.04406808]
[1717345615899,0.2436,68065.0,68054.0,0.08813616]
[1717345615900,0.03800485,68061.0,68059.0,0.15248269]
[1717345616110,0.03800485,68060.0,68059.0,0.00456695]
[1717345616333,0.03800485,68060.0,68059.0,0.15705]
[1717345616525,0.03800485,68060.0,68059.0,0.15248305]
[1717345616700,0.11590485,68060.0,68059.0,0.15705]
[1717345616905,0.0779,68060.0,68059.0,0.15705]
[1717345617119,0.0779,68060.0,68059.0,0.00456695]
[1717345617530,0.0779,68060.0,68059.0,0.15705297]
[1717345617863,0.11790485,68060.0,68059.0,0.16305297]
[1717345618068,0.0799,68060.0,68059.0,0.01056695]
[1717345618390,0.11790485,68060.0,68059.0,0.01056695]
[1717345618599,0.0799,68060.0,68059.0,0.01056695]
[1717345618793,0.004,68060.0,68059.0,0.01056695]
[1717345619050,0.004,68060.0,68059.0,0.16304761]
[1717345622255,0.04200485,68060.0,68059.0,0.16304761]
[1717345622492,0.28560485,68060.0,68059.0,0.01056695]
[1717345622727,0.28560485,68060.0,68059.0,0.006]
[1717345622962,0.2476,68060.0,68059.0,0.006]
[1717345623421,0.28560485,68060.0,68059.0,0.006]
[1717345625036,0.2476,68060.0,68059.0,0.006]
[1717345625908,0.0819,68060.0,68059.0,0.006]
[1717345628967,0.11990485,68060.0,68059.0,0.006]
[1717345629919,0.12278559,68060.0,68059.0,0.006]
[1717345631040,0.2685635,68060.0,68059.0,0.006]
[1717345631271,0.4752635,68060.0,68059.0,0.006]
[1717345631535,0.4259635,68060.0,68059.0,0.006]
[1717345632219,0.03800485,68055.0,68047.0,0.28666808]
[1717345632469,0.03800485,68056.0,68048.0,0.15250065]
[1717345632701,0.03800485,68056.0,68049.0,0.15250065]
[1717345632926,0.03800485,68056.0,68047.0,0.2426]
[1717345633153,0.03800485,68056.0,68048.0,0.15250155]
[1717345633378,0.03800485,68054.0,68049.0,0.15250155]
[1717345633604,0.03800485,68054.0,68049.0,0.1933]
[1717345634063,0.03800485,68056.0,68049.0,0.1933]
[1717345634740,0.22147791,68058.0,68050.0,0.15249973]
[1717345634741,0.004,68055.0,68050.0,0.15249973]
[1717345635016,0.004,68055.0,68049.0,0.2426]
[1717345635211,0.004,68055.0,68050.0,0.15249639]
[1717345635472,0.22147791,68058.0,68051.0,0.15249639]
[1717345635473,0.003,68056.0,68051.0,0.15249639]
[1717345635701,0.003,68056.0,68052.0,0.15249639]
[1717345635936,0.003,68056.0,68049.0,0.2536]
[1717345636166,0.003,68056.0,68050.0,0.22873906]
[1717345636381,0.003,68055.0,68051.0,0.22873906]
[1717345636620,0.006,68055.0,68052.0,0.22873906]
[1717345636868,0.003,68055.0,68053.0,0.15249271]
[1717345637108,0.003,68055.0,68052.0,0.02]
[1717345637337,0.003,68055.0,68053.0,0.15249099]
[1717345637737,0.002,68056.0,68052.0,0.02]
[1717345637931,0.002,68056.0,68053.0,0.15249163]
[1717345638294,0.002,68056.0,68052.0,0.02]
[1717345638513,0.22147791,68058.0,68053.0,0.15249276]
[1717345638719,0.002,68055.0,68052.0,0.032]
[1717345638940,0.002,68055.0,68053.0,0.15249266]
[1717345639166,0.002,68055.0,68054.0,0.1524914]
[1717345639355,0.004,68056.0,68054.0,0.1524914]
[1717345639533,0.004,68056.0,68053.0,0.011]
[1717345639727,0.004,68056.0,68054.0,0.15249071]
[1717345639969,0.22147791,68058.0,68049.0,0.2426]
[1717345640217,0.002,68056.0,68052.0,0.021]
[1717345640543,0.002,68056.0,68053.0,0.22873624]
[1717345640756,0.002,68056.0,68054.0,0.15249075]
[1717345640901,0.002,68056.0,68053.0,0.00460006]
[1717345641111,0.002,68056.0,68055.0,0.00459868]
[1717345641331,0.002,68056.0,68054.0,0.00459937]
[1717345641490,0.22147791,68058.0,68055.0,0.15708939]
[1717345641695,0.22147791,68058.0,68055.0,0.00459868]
[1717345641897,0.004,68056.0,68055.0,0.00459868]
[1717345642104,0.002,68056.0,68055.0,0.15249162]
[1717345642324,0.1636,68070.0,68055.0,0.38293062]
[1717345642325,0.0792,68066.0,68055.0,0.38293062]
[1717345642534,0.54129874,68074.0,68055.0,0.38293062]
[1717345642535,0.205717,68074.0,68065.0,0.0493]
[1717345642739,0.205717,68074.0,68068.0,0.0493]
[1717345642740,0.03800485,68073.0,68068.0,0.0493]
[1717345643178,0.03800485,68073.0,68069.0,0.15703727]
[1717345643389,0.03800485,68073.0,68069.0,0.00457709]
[1717345645078,0.2428,68071.0,68062.0,0.04400047]
[1717345645296,0.28080485,68071.0,68070.0,0.0045764]
[1717345645498,0.28080485,68071.0,68069.0,0.001]
[1717345645499,0.03800485,68070.0,68069.0,0.001]
[1717345646139,0.03800485,68069.0,68062.0,0.0439956]
[1717345646368,0.03800485,68069.0,68063.0,0.15245787]
[1717345646369,0.14577791,68068.0,68063.0,0.15245787]
[1717345646576,0.14577791,68068.0,68064.0,0.15245787]
[1717345646577,0.0792,68067.0,68064.0,0.15245787]
[1717345646781,0.0792,68067.0,68065.0,0.15245787]
[1717345647003,0.0792,68067.0,68064.0,0.00458054]
[1717345647268,0.11720485,68067.0,68065.0,0.15246584]
[1717345647469,0.1522,68066.0,68065.0,0.00457985]
[1717345647654,0.1522,68066.0,68065.0,0.15246578]
[1717345647875,0.1522,68066.0,68065.0,0.15704563]
[1717345648346,0.1522,68066.0,68065.0,0.00457985]
[1717345648797,0.0812,68067.0,68064.0,0.017]
[1717345649025,0.0812,68067.0,68065.0,0.012]
[1717345649026,0.001,68066.0,68065.0,0.012]
[1717345649238,0.001,68066.0,68065.0,0.01657985]
[1717345649704,0.002,68066.0,68065.0,0.03057985]
[1717345649885,0.001,68066.0,68065.0,0.01857985]
[1717345652099,0.001,68066.0,68065.0,0.03057985]
[1717345652305,0.002,68066.0,68065.0,0.03057985]
[1717345655269,0.04000485,68066.0,68065.0,0.03057985]
[1717345655734,0.002,68066.0,68065.0,0.03057985]
[1717345656793,0.04000485,68066.0,68065.0,0.03057985]
[1717345657058,0.002,68066.0,68065.0,0.03057985]
[1717345659479,0.002,68066.0,68065.0,0.06477985]
[1717345662977,0.002,68066.0,68065.0,0.07065609]
[1717345663180,0.002,68066.0,68065.0,0.22597985]
[1717345664164,0.002,68066.0,68065.0,0.37844376]
[1717345665792,0.002,68066.0,68065.0,0.3784439]
[1717345666420,0.002,68066.0,68065.0,0.3442439]
[1717345666877,0.002,68066.0,68065.0,0.3784439]
[1717345668465,0.002,68066.0,68065.0,0.5253619]
[1717345668699,0.002,68066.0,68065.0,0.97901938]
[1717345668911,0.002,68066.0,68065.0,1.64119112]
[1717345669119,0.002,68066.0,68065.0,1.66324899]
[1717345669333,0.002,68066.0,68065.0,1.64119112]
[1717345669568,0.002,68066.0,68065.0,1.92302712]
[1717345669569,0.001,68066.0,68065.0,1.92302712]
[1717345669772,0.2323,68086.0,68076.0,0.1942]
[1717345669961,0.2323,68086.0,68079.0,0.0493]
[1717345670168,0.2323,68086.0,68080.0,0.15243057]
[1717345670372,0.2323,68086.0,68080.0,0.00454521]
[1717345670631,0.2323,68086.0,68081.0,0.15242998]
[1717345670856,0.2323,68086.0,68080.0,0.00454521]
[1717345671072,0.2323,68086.0,68082.0,0.00454383]
[1717345671279,0.2323,68086.0,68083.0,0.00454314]
[1717345671484,0.0755,68086.0,68085.0,0.0493]
[1717345671742,0.0755,68089.0,68082.0,0.0493]
[1717345671971,0.0755,68089.0,68083.0,0.15242462]
[1717345672212,0.0755,68089.0,68084.0,0.15242462]
[1717345672449,0.014,68086.0,68083.0,0.00454314]
[1717345672692,0.0755,68089.0,68085.0,0.00454176]
[1717345672900,0.11350485,68089.0,68082.0,0.0493]
[1717345673126,0.11350485,68089.0,68083.0,0.15242219]
[1717345673353,0.0755,68089.0,68083.0,0.15696533]
[1717345673606,0.004,68086.0,68083.0,0.00454314]
[1717345673820,0.004,68086.0,68085.0,0.0493]
[1717345674024,0.004,68086.0,68084.0,0.16]
[1717345674444,0.004,68086.0,68085.0,0.00454176]
[1717345675777,0.004,68086.0,68083.0,0.0342]
[1717345676017,0.007,68086.0,68083.0,0.0342]
[1717345676259,0.003,68086.0,68084.0,0.00454245]
[1717345676479,0.27030485,68090.0,68085.0,0.001]
[1717345676706,0.27030485,68090.0,68086.0,0.00454107]
[1717345677325,0.27030485,68090.0,68083.0,0.0342]
[1717345677522,0.27030485,68090.0,68087.0,0.00454038]
[1717345677928,0.27030485,68090.0,68083.0,0.0342]
[1717345678152,0.27030485,68090.0,68088.0,0.00453969]
[1717345678358,0.27030485,68090.0,68083.0,0.0342]
[1717345678359,0.03800485,68088.0,68085.0,0.0493]
[1717345678651,0.03800485,68088.0,68085.0,0.0503]
[1717345678880,0.03800485,68089.0,68085.0,0.0503]
[1717345679135,0.03800485,68089.0,68082.0,0.2093]
[1717345679348,0.03800485,68089.0,68088.0,0.002]
[1717345679780,0.2413,68090.0,68082.0,0.0493]
[1717345679781,0.03800485,68086.0,68082.0,0.0493]
[1717345679958,0.0755,68085.0,68082.0,0.0493]
[1717345680444,0.03800485,68082.0,68076.0,0.1942]
[1717345680679,0.07838074,68085.0,68077.0,0.15243017]
[1717345680680,0.1568,68084.0,68077.0,0.15243017]
[1717345680888,0.1568,68084.0,68077.0,0.146892]
[1717345681272,0.1568,68084.0,68079.0,0.0493]
[1717345681643,0.1568,68084.0,68082.0,0.004]
[1717345682911,0.1618,68084.0,68079.0,0.0493]
[1717345683330,0.1628,68084.0,68079.0,0.0633]
[1717345683752,0.1628,68084.0,68079.0,0.06324961]
[1717345684139,0.006,68084.0,68079.0,0.06324961]
[1717345684350,0.006,68084.0,68079.0,0.09744961]
[1717345684531,0.006,68084.0,68080.0,0.16]
[1717345684939,0.001,68084.0,68080.0,0.16]
[1717345685716,0.001,68084.0,68082.0,0.0493]
[1717345685970,0.001,68084.0,68083.0,0.00452526]
[1717345686569,0.146867,68089.0,68083.0,0.00452526]
[1717345687132,0.0755,68090.0,68085.0,0.0493]
[1717345687549,0.0755,68090.0,68083.0,0.00452526]
[1717345687757,0.0755,68090.0,68086.0,0.00452319]
[1717345687972,0.0755,68090.0,68083.0,0.001]
[1717345688183,0.005,68084.0,68083.0,0.001]
[1717345688335,0.0755,68090.0,68083.0,0.0503]
[1717345688537,0.0755,68090.0,68086.0,0.0493]
[1717345688744,0.0845,68090.0,68083.0,0.0503]
[1717345689060,0.0755,68090.0,68086.0,0.0493]
[1717345689756,0.0815,68090.0,68086.0,0.0493]
[1717345689960,0.0905,68090.0,68086.0,0.0493]
[1717345690167,0.0845,68090.0,68086.0,0.0493]
[1717345690371,0.12250485,68090.0,68086.0,0.0493]
[1717345690523,0.13150485,68090.0,68086.0,0.0503]
[1717345691171,0.13150485,68090.0,68086.0,0.001]